{"text_format":"3","workbook":"xlsx","n_sheets":8,"sheets":["Árvore Genealógica","Pais","Avós Paternos","Avós Maternos","Bisavós Paternos 1","Bisavós Paternos 2","Bisavós Maternos 1","Bisavós Maternos 2"],"not_rendered":{"images":16,"external_links":4,"defined_names":97},"read":"whole","date_system":"1900"}

{"sheet":"Árvore Genealógica","index":0,"n_rows":34,"n_cols":14,"rows_kept":34,"merged":[[2,1,3,4],[3,13,3,14],[4,10,4,11],[5,13,5,14],[6,7,6,8],[7,13,7,14],[8,10,8,11],[9,13,9,14],[10,4,10,5],[11,13,11,14],[12,10,12,11],[13,13,13,14],[14,7,14,8],[15,13,15,14],[16,10,16,11],[17,13,17,14],[18,1,18,2],[19,13,19,14],[20,10,20,11],[21,13,21,14],[22,7,22,8],[23,13,23,14],[24,10,24,11],[25,13,25,14],[26,4,26,5],[27,13,27,14],[28,10,28,11],[29,13,29,14],[30,7,30,8],[31,13,31,14],[32,10,32,11],[33,13,33,14]]}
[]
[null,"Smith - Jensen"]
[null,"ÁRVORE GENEALÓGICA"]
[{"$nulls":13},"Trisavô Paterno 1 "]
[{"$nulls":10},"Bisavô Paterno 1 "]
[{"$nulls":13},"Trisavó Paterna 1 "]
[{"$nulls":7},"Ronaldo Smith Jr."]
[{"$nulls":13},"Trisavô Paterno 2"]
[{"$nulls":10},"Bisavó Paterna 1 "]
[{"$nulls":13},"Trisavó Paterna 2"]
[{"$nulls":4},"Brian Smith"]
[{"$nulls":13},"Trisavô Paterno 3"]
[{"$nulls":10},"Bisavô Paterno 2 "]
[{"$nulls":13},"Trisavó Paterna 3"]
[{"$nulls":7},"Laure Goudiard du Mesnil"]
[{"$nulls":13},"Trisavô Paterno 4"]
[{"$nulls":10},"Bisavó Paterna 2 "]
[{"$nulls":13},"Trisavó Paterna 4"]
[null,"Samantha Smith"]
[{"$nulls":13},"Trisavô Materno 1"]
[{"$nulls":10},"Bisavó Materna 1 "]
[{"$nulls":13},"Trisavó Materna 1 "]
[{"$nulls":7},"Thomas Søndergaard Jensen"]
[{"$nulls":13},"Trisavô Materno 2"]
[{"$nulls":10},"Bisavó Materna 1 "]
[{"$nulls":13},"Trisavô Materno 3"]
[{"$nulls":4},"Christiane Rønnow Jensen"]
[{"$nulls":13},"Trisavó Materna 3 "]
[{"$nulls":10},"Bisavô Materno 2 "]
[{"$nulls":13},"Trisavó Materna 3 "]
[{"$nulls":7},"Charlotte Weiss"]
[{"$nulls":13},"Trisavô Materno 4"]
[{"$nulls":10},"Bisavó Materna 2 "]
[{"$nulls":13},"Trisavó Materna 4 "]

{"sheet":"Pais","index":1,"n_rows":32,"n_cols":8,"rows_kept":32,"merged":[[9,1,9,3],[9,5,9,7],[10,2,10,3],[10,6,10,7],[11,2,11,3],[11,6,11,7],[12,2,12,3],[12,6,12,7],[13,2,13,3],[14,2,14,3],[14,6,14,7],[15,2,15,3],[15,6,15,7],[19,1,19,7],[20,1,20,7],[21,1,21,7],[22,1,22,7],[23,1,23,7],[24,1,24,7],[25,1,25,7]]}
[null,{"$f":"NomeÁrvore","v":"Smith - Jensen"}]
[null,"ÁRVORE GENEALÓGICA"]
[]
[]
[null,"PAIS DO PAI",{"$nulls":3},"PAIS DA MÃE"]
[]
[]
[]
[]
[null,{"$f":"\"Pai: \"&Pai","v":"Pai: Brian Smith"},{"$nulls":3},{"$f":"\"Mãe: \"&Mãe","v":"Mãe: Christiane Rønnow Jensen"}]
[null,null,"NASCIMENTO",{"$nulls":3},"NASCIMENTO"]
[null,null,"11 fev 1948",{"$nulls":3},"13 fev 1953"]
[null,null,"Eugene, Illinois, EUA",{"$nulls":3},"Dinamarca"]
[null,null,"MORTE",{"$nulls":3},"MORTE"]
[]
[]
[]
[]
[null," Anotações"]
[null,"Casou-se em Springfield, Indiana, em nov 1980"]
{"$rows_empty":7}
[null,"FILHOS","NOME","PARENTESCO","NASCIMENTO","LOCAL DE NASCIMENTO","MORTE","LOCAL DE MORTE"]
[null,null,{"$f":"Página_Inicial","v":"Samantha Smith"},"Filha","23 jan 1983","Illinois"]
[null,null,"Brian Smith","Filho","20 abr 1985","Illinois"]
[null,null,"John Smith","Filho","19 jan 1987","Illinois"]
[null,null,"Tony Smith","Filho","11 out 1990","Illinois"]

{"sheet":"Avós Paternos","index":2,"n_rows":33,"n_cols":8,"rows_kept":33,"merged":[[9,1,9,3],[9,5,9,7],[10,2,10,3],[10,6,10,7],[11,2,11,3],[11,6,11,7],[12,2,12,3],[12,6,12,7],[13,2,13,3],[14,2,14,3],[14,6,14,7],[15,2,15,3],[15,6,15,7],[20,1,20,7],[21,1,21,7],[22,1,22,7],[23,1,23,7],[24,1,24,7],[25,1,25,7],[26,1,26,7]]}
[null,{"$f":"NomeÁrvore","v":"Smith - Jensen"}]
[null,"ÁRVORE GENEALÓGICA"]
[]
[]
[null,"PAIS DO PAI",{"$nulls":3},"PAIS DA MÃE"]
[]
[]
[]
[]
[null,{"$f":"\"Pai: \"&AvôPaterno","v":"Pai: Ronaldo Smith Jr."},{"$nulls":3},{"$f":"\"Mãe: \"&AvóPaterna","v":"Mãe: Laure Goudiard du Mesnil"}]
[null,null,"NASCIMENTO",{"$nulls":3},"NASCIMENTO"]
[null,null,"3 mar 1906",{"$nulls":3},"11 nov 1925"]
[null,null,"Eugene, Illinois, EUA",{"$nulls":3},"França"]
[null,null,"MORTE",{"$nulls":3},"MORTE"]
[null,null,"17 jun 1991",{"$nulls":3},"4 mar 2005"]
[null,null,"Nevie, Indiana, EUA",{"$nulls":3},"Nevie, Indiana, EUA"]
[]
[]
[]
[null," Anotações"]
[null,"Casou-se em Eugene, Illinois, em abr de 1940."]
[null,"Laure imigrou para os EUA em 1955 com seus pais e se naturalizou em 1960."]
[]
[]
[]
[]
[]
[]
[null,"FILHOS","NOME","PARENTESCO","NASCIMENTO","LOCAL DE NASCIMENTO","MORTE","LOCAL DE MORTE"]
[null,null,{"$f":"Pai","v":"Brian Smith"},"Filho",{"$f":"IF(NascimentoPai<>0,NascimentoPai,\"\")","v":"11 fev 1948"},{"$f":"IF(LocNascimentoPai<>0,LocNascimentoPai,\"\")","v":"Eugene, Illinois, EUA"},{"$f":"IF(MortePai<>0,MortePai,\"\")","v":""},{"$f":"IF(LocMortePai<>0,LocMortePai,\"\")","v":""}]
[null,null,"Ben Smith","Filho","28 mar 1952","Nevie, Indiana"]
[null,null,"Denise Smith","Filha","30 mar 1955","Nevie, Indiana"]
[null,null,"Infant Smith","Filho","20 nov 1960","Nevie, Indiana","23 nov 1960","Nevie, Indiana"]

{"sheet":"Avós Maternos","index":3,"n_rows":32,"n_cols":8,"rows_kept":32,"merged":[[9,1,9,3],[9,5,9,7],[10,2,10,3],[10,6,10,7],[11,2,11,3],[11,6,11,7],[12,2,12,3],[12,6,12,7],[13,2,13,3],[14,2,14,3],[14,6,14,7],[15,2,15,3],[15,6,15,7],[20,1,20,7],[21,1,21,7],[22,1,22,7],[23,1,23,7],[24,1,24,7],[25,1,25,7],[26,1,26,7]]}
[null,{"$f":"NomeÁrvore","v":"Smith - Jensen"}]
[null,"ÁRVORE GENEALÓGICA"]
[]
[]
[null,"PAIS DO PAI",{"$nulls":3},"PAIS DA MÃE"]
[]
[]
[]
[]
[null,{"$f":"\"Pai: \"&AvôMaterno","v":"Pai: Thomas Søndergaard Jensen"},{"$nulls":3},{"$f":"\"Mãe: \"&AvóMaterna","v":"Mãe: Charlotte Weiss"}]
[null,null,"NASCIMENTO",{"$nulls":3},"NASCIMENTO"]
[null,null,"13 dez 1926",{"$nulls":3},"27 set 1932"]
[null,null,"Dinamarca",{"$nulls":3},"Dinamarca"]
[null,null,"MORTE",{"$nulls":3},"MORTE"]
[null,null,"24 jan 2006"]
[null,null,"Neivie, Indiana, EUA"]
[]
[]
[]
[null," Anotações"]
{"$rows_empty":8}
[null,"FILHOS","NOME","PARENTESCO","NASCIMENTO","LOCAL DE NASCIMENTO","MORTE","LOCAL DE MORTE"]
[null,null,{"$f":"Mãe","v":"Christiane Rønnow Jensen"},"Filha",{"$f":"IF(NascimentoMãe<>0,NascimentoMãe,\"\")","v":"13 fev 1953"},{"$f":"IF(LocNascimentoMãe<>0,LocNascimentoMãe,\"\")","v":"Dinamarca"},{"$f":"IF(MorteMãe<>0,MorteMãe,\"\")","v":""},{"$f":"IF(LocMorteMãe<>0,LocMorteMãe,\"\")","v":""}]
[null,null,"Erik Jensen","Filho","18 out 1956","Nevie, Indiana","17 set 1970","Nevie, Indiana"]
[null,null,"Henrik Jensen","Filho","2 jan 1957","Nevie, Indiana"]

{"sheet":"Bisavós Paternos 1","index":4,"n_rows":35,"n_cols":8,"rows_kept":35,"merged":[[9,1,9,3],[9,5,9,7],[10,2,10,3],[10,6,10,7],[11,2,11,3],[11,6,11,7],[12,2,12,3],[12,6,12,7],[13,2,13,3],[14,2,14,3],[14,6,14,7],[15,2,15,3],[15,6,15,7],[20,1,20,7],[21,1,21,7],[22,1,22,7],[23,1,23,7],[24,1,24,7],[25,1,25,7],[26,1,26,7]]}
[null,{"$f":"NomeÁrvore","v":"Smith - Jensen"}]
[null,"ÁRVORE GENEALÓGICA"]
[]
[]
[null,"PAIS DO PAI",{"$nulls":3},"PAIS DA MÃE"]
[]
[]
[]
[]
[null,{"$f":"\"Pai: \"&BisavôPaterno1","v":"Pai: Bisavô Paterno 1 "},{"$nulls":3},{"$f":"\"Mãe: \"&BisavóPaterna1","v":"Mãe: Bisavó Paterna 1 "}]
[null,null,"NASCIMENTO",{"$nulls":3},"NASCIMENTO"]
[]
[]
[null,null,"MORTE",{"$nulls":3},"MORTE"]
[]
[]
[]
[]
[]
[null," Anotações"]
{"$rows_empty":8}
[null,"FILHOS","NOME","PARENTESCO","NASCIMENTO","LOCAL DE NASCIMENTO","MORTE","LOCAL DE MORTE"]
[null,null,{"$f":"AvôPaterno","v":"Ronaldo Smith Jr."},"Filho",{"$f":"IF(NascimentoAvôPaterno<>0,NascimentoAvôPaterno,\"\")","v":"3 mar 1906"},{"$f":"IF(LocNascimentoAvôPaterno<>0,LocNascimentoAvôPaterno,\"\")","v":"Eugene, Illinois, EUA"},{"$f":"IF(MorteAvôPaterno<>0,MorteAvôPaterno,\"\")","v":"17 jun 1991"},{"$f":"IF(LocMorteAvôPaterno<>0,LocMorteAvôPaterno,\"\")","v":"Nevie, Indiana, EUA"}]
[null,null,"Ronaldo Smith Jr."]
[null,null,"Ronaldo Smith Jr."]
[null,null,"Ronaldo Smith Jr."]
[null,null,"Ronaldo Smith Jr."]
[null,null,"Ronaldo Smith Jr."]

{"sheet":"Bisavós Paternos 2","index":5,"n_rows":35,"n_cols":8,"rows_kept":35,"merged":[[9,1,9,3],[9,5,9,7],[10,2,10,3],[10,6,10,7],[11,2,11,3],[11,6,11,7],[12,2,12,3],[12,6,12,7],[13,2,13,3],[14,2,14,3],[14,6,14,7],[15,2,15,3],[15,6,15,7],[20,1,20,7],[21,1,21,7],[22,1,22,7],[23,1,23,7],[24,1,24,7],[25,1,25,7],[26,1,26,7]]}
[null,{"$f":"NomeÁrvore","v":"Smith - Jensen"}]
[null,"ÁRVORE GENEALÓGICA"]
[]
[]
[null,"PAIS DO PAI",{"$nulls":3},"PAIS DA MÃE"]
[]
[]
[]
[]
[null,{"$f":"\"Pai: \"&BisavôPaterno2","v":"Pai: Bisavô Paterno 2 "},{"$nulls":3},{"$f":"\"Mãe: \"&BisavóPaterna","v":"Mãe: Bisavó Paterna 2 "}]
[null,null,"NASCIMENTO",{"$nulls":3},"NASCIMENTO"]
[]
[]
[null,null,"MORTE",{"$nulls":3},"MORTE"]
[]
[]
[]
[]
[]
[null," Anotações"]
{"$rows_empty":8}
[null,"FILHOS","NOME","PARENTESCO","NASCIMENTO","LOCAL DE NASCIMENTO","MORTE","LOCAL DE MORTE"]
[null,null,{"$f":"AvóPaterna","v":"Laure Goudiard du Mesnil"},"Filha",{"$f":"IF(NascimentoAvóPaterna<>0,NascimentoAvóPaterna,\"\")","v":"11 nov 1925"},{"$f":"IF(LocNascimentoAvóPaterna<>0,LocNascimentoAvóPaterna,\"\")","v":"França"},{"$f":"IF(MorteAvóPaterna<>0,MorteAvóPaterna,\"\")","v":"4 mar 2005"},{"$f":"IF(LocMorteAvóPaterna<>0,LocMorteAvóPaterna,\"\")","v":"Nevie, Indiana, EUA"}]
[null,null,"Laure Goudiard du Mesnil"]
[null,null,"Laure Goudiard du Mesnil"]
[null,null,"Laure Goudiard du Mesnil"]
[null,null,"Laure Goudiard du Mesnil"]
[null,null,"Laure Goudiard du Mesnil"]

{"sheet":"Bisavós Maternos 1","index":6,"n_rows":35,"n_cols":8,"rows_kept":35,"merged":[[9,1,9,3],[9,5,9,7],[10,2,10,3],[10,6,10,7],[11,2,11,3],[11,6,11,7],[12,2,12,3],[12,6,12,7],[13,2,13,3],[14,2,14,3],[14,6,14,7],[15,2,15,3],[15,6,15,7],[20,1,20,7],[21,1,21,7],[22,1,22,7],[23,1,23,7],[24,1,24,7],[25,1,25,7],[26,1,26,7]]}
[null,{"$f":"NomeÁrvore","v":"Smith - Jensen"}]
[null,"ÁRVORE GENEALÓGICA"]
[]
[]
[null,"PAIS DO PAI",{"$nulls":3},"PAIS DA MÃE"]
[]
[]
[]
[]
[null,{"$f":"\"Pai: \"&BisavôMaterno1","v":"Pai: Bisavó Materna 1 "},{"$nulls":3},{"$f":"\"Mãe: \"&BisavóMaterna","v":"Mãe: Bisavó Materna 1 "}]
[null,null,"NASCIMENTO",{"$nulls":3},"NASCIMENTO"]
[]
[]
[null,null,"MORTE",{"$nulls":3},"MORTE"]
[]
[]
[]
[]
[]
[null," Anotações"]
{"$rows_empty":8}
[null,"FILHOS","NOME","PARENTESCO","NASCIMENTO","LOCAL DE NASCIMENTO","MORTE","LOCAL DE MORTE"]
[null,null,{"$f":"AvôMaterno","v":"Thomas Søndergaard Jensen"},"Filho",{"$f":"IF(NascimentoAvôMaterno<>0,NascimentoAvôMaterno,\"\")","v":"13 dez 1926"},{"$f":"IF(LocNascimentoAvôMaterno<>0,LocNascimentoAvôMaterno,\"\")","v":"Dinamarca"},{"$f":"IF(MorteAvôMaterno<>0,MorteAvôMaterno,\"\")","v":"24 jan 2006"},{"$f":"IF(LocMorteAvôMaterno<>0,LocMorteAvôMaterno,\"\")","v":"Neivie, Indiana, EUA"}]
[null,null,"Thomas Søndergaard Jensen"]
[null,null,"Thomas Søndergaard Jensen"]
[null,null,"Thomas Søndergaard Jensen"]
[null,null,"Thomas Søndergaard Jensen"]
[null,null,"Thomas Søndergaard Jensen"]

{"sheet":"Bisavós Maternos 2","index":7,"n_rows":35,"n_cols":8,"rows_kept":35,"merged":[[9,1,9,3],[9,5,9,7],[10,2,10,3],[10,6,10,7],[11,2,11,3],[11,6,11,7],[12,2,12,3],[12,6,12,7],[13,2,13,3],[14,2,14,3],[14,6,14,7],[15,2,15,3],[15,6,15,7],[20,1,20,7],[21,1,21,7],[22,1,22,7],[23,1,23,7],[24,1,24,7],[25,1,25,7],[26,1,26,7]]}
[null,{"$f":"NomeÁrvore","v":"Smith - Jensen"}]
[null,"ÁRVORE GENEALÓGICA"]
[]
[]
[null,"PAIS DO PAI",{"$nulls":3},"PAIS DA MÃE"]
[]
[]
[]
[]
[null,{"$f":"\"Pai: \"&BisavôMaterno2","v":"Pai: Bisavô Materno 2 "},{"$nulls":3},{"$f":"\"Mãe: \"&BisavóMaterna2","v":"Mãe: Bisavó Materna 2 "}]
[null,null,"NASCIMENTO",{"$nulls":3},"NASCIMENTO"]
[]
[]
[null,null,"MORTE",{"$nulls":3},"MORTE"]
[]
[]
[]
[]
[]
[null," Anotações"]
{"$rows_empty":8}
[null,"FILHOS","NOME","PARENTESCO","NASCIMENTO","LOCAL DE NASCIMENTO","MORTE","LOCAL DE MORTE"]
[null,null,{"$f":"AvóMaterna","v":"Charlotte Weiss"},"Filha",{"$f":"IF(NascimentoAvóMaterna<>0,NascimentoAvóMaterna,\"\")","v":"27 set 1932"},{"$f":"IF(LocNascimentoAvóMaterna<>0,LocNascimentoAvóMaterna,\"\")","v":"Dinamarca"},{"$f":"IF(MorteAvóMaterna<>0,MorteAvóMaterna,\"\")","v":""},{"$f":"IF(LocMorteAvóMaterna<>0,LocMorteAvóMaterna,\"\")","v":""}]
[null,null,"Charlotte Weiss"]
[null,null,"Charlotte Weiss"]
[null,null,"Charlotte Weiss"]
[null,null,"Charlotte Weiss"]
[null,null,"Charlotte Weiss"]